bitfinex-derivatives/quotes_ETHF0:USTF0_20241231
["timestamp","ask_amount","ask_price","bid_price","bid_amount"]
[1735661452235,3.6713,3415.8,3415.1,0.29324]
[1735661452434,4.1177,3415.8,3415.1,0.29324]
[1735661452736,0.9099,3415.8,3415.1,0.29324]
[1735661452929,1.20308,3415.8,3415.1,0.29324]
[1735661453129,0.9099,3415.8,3415.1,0.29324]
[1735661453531,3.43987992,3415.5,3415.1,0.29324]
[1735661453736,3.43987992,3415.5,3415.4,2.63832798]
[1735661454738,3.43987992,3415.6,3415.4,2.34511798]
[1735661455037,3.43987992,3415.6,3415.5,0.2932]
[1735661456133,3.43987992,3415.7,3415.4,2.34511798]
[1735661456329,3.43987992,3415.7,3415.6,0.29319]
[1735661457441,5.49640657,3415.8,3415.7,0.29319]
[1735661458337,5.78958657,3415.8,3415.7,0.29319]
[1735661459140,5.49640657,3415.8,3415.7,0.29319]
[1735661460439,5.78958657,3415.8,3415.7,0.29319]
[1735661460834,1.20308,3415.8,3415.7,0.29319]
[1735661461143,0.9099,3415.8,3415.7,0.29319]
[1735661463843,4.34597619,3415.8,3415.7,0.29319]
[1735661464435,4.63915619,3415.8,3415.7,0.29319]
[1735661464638,0.2932,3415.7,3415.6,0.29319]
[1735661464838,4.34597619,3415.8,3415.3,2.34511798]
[1735661465139,0.29319,3415.7,3415.6,0.29319]
[1735661466637,0.29319,3415.7,3415.1,5.16788]
[1735661466638,9.84720439,3415.8,3415.1,3.2078]
[1735661466840,0.29323,3415.3,3415.2,0.29322]
[1735661467537,9.84720439,3415.8,3415.1,3.2078]
[1735661467742,0.2932,3415.6,3415.5,0.29319]
[1735661468137,4.1177,3415.8,3415.3,2.34511798]
[1735661468446,1.20308,3415.8,3415.7,0.29319]
[1735661468840,6.92933045,3415.8,3415.7,0.29319]
[1735661470742,0.9099,3415.8,3415.7,0.29319]
[1735661470944,1.20308,3415.8,3415.7,0.29319]
[1735661471946,0.2932,3415.7,3415.6,0.29319]
[1735661473447,6.01945045,3415.7,3415.6,0.29319]
[1735661475649,0.2932,3415.7,3415.6,0.29319]
[1735661476045,6.92933045,3415.8,3415.7,0.29319]
[1735661476248,6.17265045,3415.8,3415.7,0.29319]
[1735661476452,5.72625045,3415.8,3415.7,0.29319]
[1735661477345,4.5793089,3415.9,3415.8,0.29318]
[1735661478146,4.5793089,3416.0,3415.6,2.34511798]
[1735661478350,4.5793089,3416.0,3415.9,5.84608798]
[1735661479448,3.43443824,3416.1,3416.0,0.29316]
[1735661479740,3.43443824,3416.1,3416.0,2.63827798]
[1735661482457,3.43443824,3416.2,3416.1,0.29315]
[1735661485647,3.43443824,3416.2,3416.1,1.52015]
[1735661485849,5.72625045,3416.6,3416.1,6.227]
[1735661486055,5.72625045,3416.7,3416.5,5.55291798]
[1735661486256,6.01935045,3416.7,3416.6,2.63822798]
[1735661486754,5.72625045,3416.7,3416.6,2.63822798]
[1735661487863,0.29308,3417.0,3416.9,0.29308]
[1735661489967,0.4198,3417.1,3416.3,4.636]
[1735661490268,0.29313,3416.4,3416.3,4.636]
[1735661490961,0.29312,3416.5,3416.4,0.29312]
[1735661491165,0.4307,3416.6,3416.5,0.29312]
[1735661491368,0.73265,3417.2,3416.4,6.28571798]
[1735661491572,6.01934045,3416.9,3416.8,0.29308]
[1735661492767,0.29312,3416.7,3416.6,0.2931]
[1735661493164,0.29313,3416.5,3416.4,0.29312]
[1735661493362,0.29313,3416.4,3416.3,4.92913]
[1735661493562,0.72353,3416.4,3416.3,4.92913]
[1735661493768,0.4304,3416.4,3416.3,0.29313]
[1735661495162,0.72353,3416.4,3416.3,0.29313]
[1735661496566,0.4304,3416.4,3416.3,0.29313]
[1735661496764,0.4277,3416.9,3416.1,3.57211798]
[1735661496956,6.48293045,3417.0,3416.9,0.29308]
[1735661497361,0.75668,3417.0,3416.9,0.29308]
[1735661498470,0.4636,3417.0,3416.9,0.29308]
[1735661499072,0.75397,3417.1,3416.8,2.34511798]
[1735661499266,0.75397,3417.1,3417.0,0.29307]
[1735661502466,0.29308,3417.0,3416.9,0.29308]
[1735661503573,0.4609,3417.1,3416.5,2.34511798]
[1735661503865,0.4609,3417.1,3415.9,2.34511798]
[1735661503866,2.80601798,3417.1,3415.9,2.34511798]
[1735661504066,0.73279,3416.6,3415.9,5.55291798]
[1735661504274,0.29314,3416.3,3416.2,0.29313]
[1735661504463,0.29314,3416.3,3416.2,2.63824798]
[1735661504665,0.29313,3416.4,3416.3,0.29313]
[1735661504965,0.8451,3416.5,3416.2,2.34511798]
[1735661505175,0.8451,3416.5,3416.4,0.29313]
[1735661506463,0.4248,3416.5,3416.4,0.29313]
[1735661507069,0.4635,3416.9,3416.8,0.29309]
[1735661507070,0.75659,3416.9,3416.8,0.29309]
[1735661507573,0.4635,3416.9,3416.8,0.29309]
[1735661507971,0.4326,3417.0,3416.9,0.29308]
[1735661508171,0.4326,3417.0,3416.9,2.63819798]
[1735661508471,0.72567,3417.0,3416.9,2.63819798]
[1735661512774,0.4326,3417.0,3416.5,0.73278]
[1735661512976,0.29311,3416.7,3416.6,0.2931]
[1735661513475,0.29313,3416.5,3416.4,0.29312]
[1735661513972,0.4476,3416.6,3416.3,3.2078]
[1735661514178,1.16113,3416.4,3416.3,3.50093]
[1735661514774,0.29313,3416.3,3416.2,2.63825798]
[1735661516374,1.16113,3416.4,3416.3,0.29313]
[1735661516674,0.868,3416.4,3416.3,0.29313]
[1735661518078,1.16113,3416.4,3416.3,0.29313]
[1735661519976,0.868,3416.4,3416.3,0.29313]
[1735661520382,1.16113,3416.4,3416.3,0.29313]
[1735661520980,0.868,3416.4,3416.3,0.29313]
[1735661521984,5.72625045,3416.6,3416.5,0.29312]
[1735661522281,5.72625045,3416.6,3416.5,2.63823798]
[1735661522479,0.2931,3416.7,3416.6,0.29311]
[1735661523483,5.72625045,3416.8,3416.5,2.34511798]
[1735661523686,0.29311,3416.6,3416.5,0.29311]
[1735661523984,3.94056,3416.7,3415.9,5.55291798]
[1735661524181,0.29316,3416.2,3416.1,0.29314]
[1735661524778,0.29316,3416.1,3416.0,0.29315]
[1735661525180,0.29315,3416.2,3416.1,0.29314]
[1735661525482,0.29316,3416.0,3415.9,2.63827798]
[1735661526878,1.3641,3416.1,3415.6,2.34511798]
[1735661527085,0.29319,3415.6,3415.5,3.501]
[1735661527380,3.2078,3415.9,3415.2,4.59934449]
[1735661527679,0.29322,3415.3,3415.2,4.59934449]
[1735661528679,7.05825045,3415.4,3414.9,2.34511798]
[1735661528885,7.35147045,3415.4,3415.3,0.29322]
[1735661529183,0.29325,3415.0,3414.9,2.63836798]
[1735661529379,0.29328,3414.6,3414.4,4.59934449]
[1735661529586,0.29328,3414.7,3414.6,0.29327]
[1735661529787,0.29326,3414.9,3414.8,0.29326]
[1735661530085,3.2078,3415.2,3415.1,0.29323]
[1735661530086,0.29323,3415.2,3415.1,0.29323]
[1735661530285,0.29323,3415.2,3415.1,2.63834798]
[1735661530478,0.29323,3415.2,3415.1,2.63835798]
[1735661531078,0.29323,3415.2,3415.1,2.34511798]
[1735661531286,0.29325,3415.0,3414.9,0.29325]
[1735661531583,0.29325,3414.9,3414.8,2.63837798]
[1735661531775,0.29325,3415.0,3414.9,0.29325]
[1735661532179,0.29325,3414.9,3414.8,2.34511798]
[1735661532482,0.29325,3415.0,3414.9,0.29325]
[1735661532879,0.29325,3414.9,3414.8,2.63837798]
[1735661533081,3.2078,3415.2,3414.8,2.34511798]
[1735661533278,3.2078,3415.2,3415.1,0.29324]
[1735661533478,1.332,3415.4,3415.3,0.29322]
[1735661534490,3.501,3415.6,3415.1,2.34511798]
[1735661534491,3.2078,3415.6,3415.1,2.34511798]
[1735661534684,6.89452045,3415.9,3415.8,0.29318]
[1735661534988,0.8751,3415.9,3415.8,0.29318]
[1735661535483,6.15045045,3416.1,3416.0,0.29316]
[1735661535687,5.72625045,3416.1,3416.0,0.29316]
[1735661535986,0.8751,3416.4,3416.0,2.34511798]
[1735661536179,0.8751,3416.4,3416.3,0.29313]
[1735661537279,1.16823,3416.4,3416.3,0.29313]
[1735661537485,0.8751,3416.4,3416.3,0.29313]
[1735661538090,1.16823,3416.4,3416.3,0.29313]
[1735661538279,0.8751,3416.4,3415.7,6.28587798]
[1735661538480,3.2078,3416.3,3415.7,5.55291798]
[1735661538694,3.2078,3416.3,3416.0,2.34511798]
[1735661538992,3.2078,3416.3,3416.2,0.29314]
[1735661539293,0.8751,3416.4,3416.3,0.29313]
[1735661540090,1.16823,3416.4,3416.3,0.29313]
[1735661540494,0.8751,3416.4,3416.0,2.34511798]
[1735661540694,0.29314,3416.3,3416.2,0.29314]
[1735661540895,0.8751,3416.4,3416.3,0.29313]
[1735661541191,0.29314,3416.3,3416.2,0.29314]
[1735661541394,1.16823,3416.4,3416.3,0.29313]
[1735661542588,0.29314,3416.2,3416.1,0.29315]
[1735661542990,0.29314,3416.3,3416.2,0.29313]
[1735661543191,0.8751,3416.4,3416.3,0.29313]
[1735661543192,1.16823,3416.4,3416.3,0.29313]
[1735661544693,0.8751,3416.4,3416.0,2.34511798]
[1735661544892,0.29315,3416.2,3416.1,0.29315]
[1735661545089,4.0829,3416.4,3416.2,0.29314]
[1735661545090,0.29314,3416.3,3416.2,0.29314]
[1735661545487,4.37603,3416.4,3416.3,0.29313]
[1735661545794,4.0829,3416.4,3416.3,0.29313]
[1735661546297,3.6422,3416.4,3416.3,0.29313]
[1735661546699,3.6422,3416.4,3416.2,0.29314]
[1735661546996,3.93533,3416.4,3416.3,0.29313]
[1735661547196,3.6422,3416.4,3416.0,2.34511798]
[1735661547393,3.93533,3416.4,3416.3,0.29313]
[1735661547805,3.6422,3416.4,3415.7,2.34511798]
[1735661548099,3.2078,3416.0,3415.1,3.57111798]
[1735661548303,5.4344,3416.4,3415.5,0.29319]
[1735661548304,3.501,3415.6,3415.5,0.29319]
[1735661550097,3.2078,3415.6,3415.1,3.57111798]
[1735661550293,0.72461,3415.5,3415.4,0.2932]
[1735661550500,0.7246,3415.5,3415.4,0.2932]
[1735661550893,0.4314,3415.5,3415.1,3.57111798]
[1735661551088,0.29323,3415.2,3415.1,3.86434798]
[1735661551298,0.29322,3415.4,3415.3,0.29321]
[1735661552400,0.72461,3415.5,3415.4,0.29321]
[1735661553703,0.4314,3415.5,3415.1,3.57111798]
[1735661553893,0.29322,3415.4,3415.3,0.29321]
[1735661554402,0.72461,3415.5,3415.4,0.29321]
[1735661554604,0.29322,3415.4,3415.3,0.29321]
[1735661557207,0.4314,3415.5,3415.4,0.29321]
[1735661557403,3.2078,3415.6,3415.5,0.2932]
[1735661558109,0.4382,3415.8,3415.4,2.34511798]
[1735661558304,8.93405045,3416.0,3415.9,0.29317]
[1735661558510,5.72625045,3416.0,3415.9,0.29317]
[1735661558912,6.17415045,3416.3,3415.7,2.34511798]
[1735661559307,3.2078,3416.2,3415.4,2.34511798]
[1735661559505,0.29319,3415.8,3415.7,0.29318]
[1735661559904,0.29317,3415.9,3415.8,0.29316]
[1735661560111,3.2078,3416.2,3415.7,2.34511798]
[1735661560307,3.2078,3416.2,3416.1,0.29315]
[1735661560704,3.50094,3416.2,3416.1,0.29315]
[1735661561209,0.29316,3416.1,3416.0,0.29315]
[1735661561411,3.50095,3416.2,3416.1,0.29315]
[1735661561610,3.2078,3416.2,3416.1,0.29315]
[1735661563406,0.4247,3416.4,3416.3,0.29313]
[1735661563806,0.4247,3416.4,3416.3,2.63824798]
[1735661569715,0.71783,3416.4,3416.3,2.63824798]
[1735661570205,0.4247,3416.4,3416.3,2.63824798]
[1735661570409,0.4247,3416.4,3416.3,0.29313]
[1735661570609,0.71783,3416.4,3416.3,0.29313]
[1735661571216,0.29315,3416.2,3416.1,0.29314]
[1735661572818,0.74564,3416.3,3416.2,0.29314]
[1735661573911,0.4525,3416.3,3416.2,0.29314]
[1735661574419,0.4418,3416.6,3416.0,2.34511798]
[1735661574615,0.4418,3416.6,3416.5,2.63823798]
[1735661576922,9.67762045,3417.1,3416.7,0.2931]
[1735661577123,0.72047,3417.0,3416.9,2.63819798]
[1735661577317,0.29309,3416.9,3416.8,0.29308]
[1735661577614,6.15365045,3417.0,3416.9,0.29308]
[1735661577826,6.15365045,3417.0,3416.9,2.63819798]
[1735661578211,0.72047,3417.0,3416.9,2.63819798]
[1735661579111,0.4274,3417.0,3416.9,2.63819798]
[1735661582326,0.4432,3417.3,3417.2,0.29306]
[1735661582526,0.4432,3417.3,3417.2,2.63817798]
[1735661582828,5.72625045,3417.4,3417.2,2.34511798]
[1735661583128,5.72625045,3417.4,3417.3,0.29305]
[1735661583326,3.2078,3417.5,3417.2,2.34511798]
[1735661583628,3.2078,3417.5,3417.4,0.29304]
[1735661584531,7.06825045,3417.7,3417.6,0.29302]
[1735661584834,1.342,3417.7,3417.6,0.29302]
[1735661585828,1.63501,3417.7,3417.6,0.29302]
[1735661587232,1.342,3417.7,3417.6,0.29302]
[1735661587435,0.8828,3417.7,3417.6,0.29302]
[1735661587625,3.2078,3418.0,3417.9,0.293]
[1735661587927,3.2078,3418.0,3417.9,2.63811798]
[1735661588933,0.293,3417.9,3417.8,0.293]
[1735661589234,0.7325,3417.9,3417.3,2.34511798]
[1735661589537,0.29304,3417.5,3417.4,0.29303]
[1735661589735,3.2078,3417.6,3417.0,6.98111798]
[1735661589936,0.29307,3417.2,3417.1,0.29306]
[1735661590135,0.29307,3417.1,3417.0,2.63818798]
[1735661590337,0.4313,3417.4,3417.0,2.34511798]
[1735661590532,0.29307,3417.2,3417.1,0.29306]
[1735661590932,0.2931,3416.8,3416.7,0.29309]
[1735661591236,3.2078,3417.2,3416.7,2.34511798]
[1735661591433,3.2078,3417.2,3416.9,0.29308]
[1735661591434,0.29308,3417.0,3416.9,0.29308]
[1735661592033,0.29309,3416.9,3416.8,0.29308]
[1735661592239,0.4537,3416.9,3416.8,0.29309]
[1735661592733,0.4313,3417.4,3417.3,0.29305]
[1735661592942,0.885,3417.4,3417.3,0.29305]
[1735661593738,0.29306,3417.3,3417.2,0.29305]
[1735661593944,0.885,3417.4,3417.1,2.34511798]
[1735661594131,1.17805,3417.4,3417.3,0.29305]
[1735661594333,0.4464,3417.5,3417.4,0.29304]
[1735661594633,0.4464,3417.5,3417.4,2.63815798]
[1735661599033,0.73943,3417.5,3417.4,2.63815798]
[1735661599231,0.73943,3417.5,3417.4,0.29304]
[1735661600633,0.4464,3417.5,3417.4,0.29304]
[1735661601535,0.73943,3417.5,3417.4,0.29304]
[1735661604732,0.4464,3417.5,3417.4,0.29304]
[1735661604942,0.73943,3417.5,3417.4,0.29304]
[1735661605941,0.29307,3417.1,3417.0,0.29307]
[1735661606143,3.2078,3417.2,3416.5,2.34511798]
[1735661606347,3.2078,3417.2,3416.2,0.7472]
[1735661606348,0.29311,3416.7,3416.6,0.2931]
[1735661606746,1.59071,3416.7,3416.6,0.2931]
[1735661607048,0.29312,3416.5,3416.4,0.29311]
[1735661607248,0.29312,3416.6,3416.5,0.29311]
[1735661608448,1.2976,3416.7,3416.5,2.34511798]
[1735661608647,1.2976,3416.7,3416.6,0.29311]
[1735661608949,1.5907,3416.7,3416.6,0.29311]
[1735661609442,5.72625045,3417.0,3416.5,2.34511798]
[1735661609648,5.72625045,3417.0,3416.9,2.63819798]
[1735661610041,0.29307,3417.1,3417.0,0.29307]
[1735661610042,6.01932045,3417.1,3417.0,0.29307]
[1735661610545,5.72625045,3417.1,3416.6,2.34511798]
[1735661610853,0.29311,3416.7,3416.6,0.2931]
[1735661611042,0.29313,3416.5,3416.4,0.29313]
[1735661611646,3.50093,3416.5,3416.4,0.29313]
[1735661611847,0.9052,3416.5,3416.4,0.29313]
[1735661613548,0.4254,3416.6,3416.5,0.29312]
[1735661613849,0.71851,3416.6,3416.5,0.29312]
[1735661615249,0.4254,3416.6,3416.5,0.29312]
[1735661615555,0.71851,3416.6,3416.5,0.29312]
[1735661616153,0.4254,3416.6,3416.0,1.225]
[1735661616339,0.29314,3416.3,3416.2,0.29313]
[1735661617542,3.2078,3416.5,3415.9,2.34511798]
[1735661617744,0.29316,3416.1,3416.0,0.29315]
[1735661618150,0.73676,3416.1,3416.0,0.29315]
[1735661620352,3.6514,3416.1,3415.1,3.2078]
[1735661620552,1.19681,3416.0,3415.2,2.34511798]
[1735661620852,0.29324,3415.2,3415.1,0.29323]
[1735661621050,3.50103,3415.3,3415.2,0.29323]
[1735661621251,0.29323,3415.2,3415.1,0.29323]
[1735661621551,1.18323,3415.2,3415.1,0.29323]
[1735661621952,0.89,3415.2,3414.9,2.34511798]
[1735661622148,0.29325,3415.0,3414.9,2.34511798]
[1735661623742,0.29325,3415.0,3414.9,2.63836798]
[1735661624149,0.89,3415.2,3415.1,0.29324]
[1735661624348,0.89,3415.2,3414.9,2.34511798]
[1735661624648,0.29325,3415.0,3414.9,2.63836798]
[1735661624850,0.29325,3415.0,3414.9,2.34511798]
[1735661625348,0.29326,3414.8,3414.7,0.29327]
[1735661625950,0.89,3415.2,3414.6,2.34511798]
[1735661626255,0.2933,3414.4,3414.3,2.63841798]
[1735661626457,0.29329,3414.5,3414.4,0.29329]
[1735661627152,3.2078,3414.9,3414.3,2.34511798]
[1735661627555,0.29329,3414.5,3414.4,0.29329]
[1735661627854,3.94094,3414.9,3414.3,2.34511798]
[1735661628154,0.2933,3414.4,3414.3,2.34511798]
[1735661628353,0.2933,3414.4,3414.3,2.63842798]
[1735661629451,0.2933,3414.4,3414.3,0.29331]
[1735661629657,0.29331,3414.3,3414.2,0.29331]
[1735661629859,0.29334,3413.9,3413.8,3.2078]
[1735661630361,3.2078,3414.0,3413.4,2.34511798]
[1735661630557,0.29337,3413.6,3413.5,0.29337]
[1735661630953,0.29336,3413.7,3413.5,0.29337]
[1735661631148,3.2078,3414.0,3413.4,0.29338]
[1735661631350,0.29337,3413.5,3413.4,2.63849798]
[1735661631548,0.8943,3413.6,3413.2,3.2078]
[1735661631753,0.29339,3413.3,3413.2,3.5012]
[1735661631948,0.29339,3413.3,3413.2,0.2934]
[1735661632254,0.29338,3413.4,3413.3,0.29339]
[1735661632854,0.29338,3413.5,3413.4,0.29338]
[1735661633052,3.2078,3413.8,3413.7,0.29336]
[1735661633256,3.50115,3413.8,3413.7,0.29336]
[1735661633455,0.29335,3413.8,3413.7,0.29336]
[1735661633658,0.8535,3414.0,3413.4,2.34511798]
[1735661633958,0.29336,3413.7,3413.6,0.29336]
[1735661634155,0.8535,3414.0,3413.4,5.55291798]
[1735661634364,0.8535,3414.0,3413.4,2.34511798]
[1735661634658,0.29334,3413.9,3413.8,0.29334]
[1735661634858,0.29335,3413.8,3413.7,0.29335]
[1735661635954,0.29335,3413.9,3413.8,0.29334]
[1735661636662,0.29335,3413.8,3413.7,0.29335]
[1735661638159,0.29336,3413.7,3413.6,0.29336]
[1735661638558,0.8535,3414.0,3413.4,2.34511798]
[1735661639059,0.29335,3413.8,3413.7,0.29335]
[1735661639361,0.8535,3414.0,3413.9,0.29334]
[1735661639561,1.14683,3414.0,3413.9,0.29334]
[1735661639758,0.8535,3414.0,3413.4,2.34511798]
[1735661639952,0.29337,3413.6,3413.5,0.29337]
[1735661640153,3.2078,3413.8,3413.1,4.00251798]
[1735661640356,0.29341,3413.2,3413.1,0.29341]
[1735661640551,0.29341,3413.1,3413.0,3.50121]
[1735661640758,0.8657,3413.1,3413.0,3.50121]
[1735661640959,0.29339,3413.4,3413.0,3.2078]
[1735661641166,0.29339,3413.4,3413.3,0.29339]
[1735661641560,0.4594,3413.5,3413.1,2.34511798]
[1735661641861,0.75278,3413.5,3413.4,0.29338]
[1735661642263,0.8657,3413.7,3413.1,2.34511798]
[1735661642463,0.8657,3413.7,3413.6,0.29337]
[1735661643857,0.75274,3413.9,3413.4,2.34511798]
[1735661644064,0.75274,3413.9,3413.8,0.29335]
[1735661645565,0.8525,3414.1,3413.7,2.34511798]
[1735661645766,1.14583,3414.1,3414.0,0.29333]
[1735661646168,0.29334,3414.0,3413.9,0.29333]
[1735661646470,0.29335,3413.9,3413.8,0.29334]
[1735661646873,0.4614,3414.0,3413.9,0.29334]
[1735661647368,0.4614,3414.0,3413.5,0.2933]
[1735661647576,0.4614,3414.0,3413.4,5.55291798]
[1735661647577,0.29336,3413.8,3413.7,0.29335]
[1735661648462,0.29335,3413.9,3413.8,0.29334]
[1735661648867,0.4614,3414.0,3413.9,0.29334]
[1735661649068,0.75473,3414.0,3413.9,0.29334]
[1735661650667,0.29335,3413.9,3413.8,0.29334]
[1735661651067,0.75474,3414.0,3413.9,0.29334]
[1735661651273,0.4614,3414.0,3413.4,5.84621798]
[1735661651474,0.29337,3413.7,3413.6,0.29336]
[1735661651970,0.2934,3413.3,3413.2,0.2934]
[1735661652273,0.29338,3413.6,3413.5,0.29336]
[1735661652473,3.50116,3413.8,3413.7,0.29336]
[1735661652671,0.29338,3413.5,3413.4,0.29338]
[1735661653062,0.4614,3414.0,3413.1,3.07863798]
[1735661653270,0.29335,3413.9,3413.8,0.29334]
[1735661653569,0.4614,3414.0,3413.7,2.34511798]
[1735661653769,0.4614,3414.0,3413.9,0.29334]
[1735661654669,0.8525,3414.1,3414.0,0.29333]
[1735661655074,1.14582,3414.1,3414.0,0.29333]
[1735661655475,0.8525,3414.1,3414.0,0.29333]
[1735661655675,1.14582,3414.1,3414.0,0.29333]
[1735661656366,0.29335,3414.0,3413.9,0.29333]
[1735661656570,0.72415,3414.0,3413.9,0.29333]
[1735661659174,0.4308,3414.0,3413.1,2.34511798]
[1735661659377,0.29337,3413.6,3413.1,3.07863798]
[1735661659576,0.29337,3413.6,3413.5,0.29337]
[1735661659772,0.29336,3413.8,3413.4,2.34511798]
[1735661659978,0.29336,3413.8,3413.7,0.29336]
[1735661660879,0.29337,3413.6,3413.5,0.29336]
[1735661661681,0.29336,3413.7,3413.6,0.29336]
[1735661662678,0.29337,3413.6,3413.5,0.29337]
[1735661662886,3.2078,3413.6,3413.5,0.29337]
[1735661663683,0.2934,3413.3,3413.2,0.2934]
[1735661663875,0.29341,3413.2,3413.1,0.29341]
[1735661664075,0.9151,3413.2,3413.1,0.29341]
[1735661664277,0.9151,3413.2,3413.1,2.63852798]
[1735661664680,0.4444,3413.5,3413.4,0.29338]
[1735661664885,4.1229,3414.0,3413.4,2.34511798]
[1735661665077,0.29337,3413.6,3413.5,0.29336]
[1735661665983,0.4444,3413.9,3413.4,2.34511798]
[1735661666286,0.4444,3413.9,3413.1,5.55291798]
[1735661666486,0.29338,3413.5,3413.4,0.29338]
[1735661666875,3.50118,3413.5,3413.4,0.29338]
[1735661667275,3.50117,3413.5,3413.4,0.29338]
[1735661667986,3.2078,3413.5,3413.4,2.63849798]
[1735661669387,0.29335,3413.8,3413.7,0.29335]
[1735661670582,0.29337,3413.7,3413.6,0.29336]
[1735661671685,5.72625045,3413.8,3413.4,2.34511798]
[1735661671884,5.72625045,3413.8,3413.7,0.29336]
[1735661672783,6.46399045,3413.9,3413.8,0.29335]
[1735661673181,0.29336,3413.8,3413.7,0.29335]
[1735661673387,6.17065045,3413.9,3413.4,2.34511798]
[1735661673583,0.29337,3413.7,3413.6,0.29336]
[1735661673991,0.29337,3413.7,3413.2,1.1616]
[1735661673992,0.2934,3413.3,3413.0,0.29342]
[1735661674192,0.2934,3413.3,3413.2,0.2934]
[1735661674391,0.29339,3413.4,3413.3,0.29339]
[1735661674595,3.2078,3413.7,3412.9,4.89184449]
[1735661674889,6.01964045,3413.4,3413.3,0.29339]
[1735661675090,6.01963045,3413.4,3413.3,0.29339]
[1735661675590,5.72625045,3413.4,3412.9,0.2925]
[1735661675788,0.8859,3413.3,3413.2,0.2934]
[1735661676089,0.29343,3413.0,3412.9,0.29341]
[1735661677385,5.72625045,3413.2,3412.7,3.2078]
[1735661677584,0.29343,3412.8,3412.7,3.50124]
[1735661678185,0.29343,3412.8,3412.7,3.2078]
[1735661679186,0.29343,3412.8,3412.7,3.50124]
[1735661680191,5.72625045,3412.9,3412.7,3.2078]
[1735661680391,5.72625045,3412.9,3412.8,2.63854798]
[1735661680897,6.01968045,3412.9,3412.8,0.29343]
[1735661681095,0.29342,3413.0,3412.9,0.29343]
[1735661681298,5.72625045,3413.2,3413.1,0.29341]
[1735661681496,6.01965045,3413.2,3413.1,0.29341]
[1735661681685,5.72625045,3413.2,3413.1,0.29341]
[1735661682193,0.2934,3413.2,3413.1,0.29341]
[1735661683006,0.29342,3413.1,3413.0,0.29341]
[1735661683611,9.81995045,3413.3,3412.8,2.34511798]
[1735661683908,0.29341,3413.2,3413.1,0.2934]
[1735661684603,6.61215045,3413.3,3412.8,2.34511798]
[1735661684802,6.90555045,3413.3,3413.2,0.2934]
[1735661686909,1.1793,3413.3,3413.2,0.2934]
[1735661687111,4.3871,3413.3,3413.2,0.2934]
[1735661687610,10.11335045,3413.3,3413.2,0.2934]
[1735661688906,4.3871,3413.3,3413.2,0.2934]
[1735661689105,0.8859,3413.3,3413.2,0.2934]
[1735661689308,5.72625045,3413.4,3413.3,0.29339]
[1735661689910,3.2078,3414.1,3413.5,0.29337]
[1735661689911,5.72625045,3413.6,3413.5,0.29337]
[1735661690211,5.72625045,3413.6,3413.5,2.63848798]
[1735661690705,5.72625045,3413.6,3413.5,3.36948798]
[1735661691205,5.72625045,3414.2,3414.1,0.29332]
[1735661691906,5.72625045,3414.2,3414.1,3.50112]
[1735661692204,5.72625045,3414.2,3414.1,4.72512]
[1735661692804,5.72625045,3414.8,3414.7,0.29327]
[1735661693008,5.72625045,3414.8,3414.7,2.63838798]
[1735661693310,6.16275045,3414.8,3414.7,2.63838798]
[1735661694218,0.4365,3414.8,3414.7,2.63838798]
[1735661694511,0.4365,3414.8,3414.5,0.29328]
[1735661694512,0.29328,3414.6,3414.5,0.29328]
[1735661695106,0.4365,3414.8,3414.4,2.34511798]
[1735661695502,0.72977,3414.8,3414.7,0.29327]
[1735661696310,0.72976,3414.8,3414.7,0.29327]
[1735661696610,0.4365,3414.8,3414.4,2.34511798]
[1735661696814,0.4365,3414.8,3414.7,0.29327]
[1735661697210,0.4365,3414.8,3414.4,2.34511798]
[1735661697414,0.4365,3414.8,3414.3,0.2933]
[1735661697610,0.29328,3414.6,3414.1,5.55291798]
[1735661697911,0.72977,3414.8,3414.7,0.29327]
[1735661698112,0.4365,3414.8,3414.7,0.29327]
[1735661698809,0.4365,3414.8,3414.4,2.34511798]
[1735661699014,0.4365,3414.8,3414.1,5.55291798]
[1735661699207,0.4365,3414.8,3414.7,0.29327]
[1735661699408,0.4365,3414.8,3414.2,0.73329]
[1735661699409,0.29327,3414.7,3414.6,0.29328]
[1735661699704,0.4365,3414.8,3414.1,2.34511798]
[1735661699909,3.2078,3414.5,3414.1,2.34511798]
[1735661700208,3.2078,3414.5,3414.4,2.63841798]
[1735661700408,0.4365,3414.8,3414.4,2.34511798]
[1735661700611,0.4365,3414.8,3414.7,0.29327]
[1735661700812,0.4365,3414.8,3414.1,5.55291798]
[1735661701010,0.2933,3414.4,3414.3,0.2933]
[1735661701312,0.2933,3414.4,3414.2,0.29331]
[1735661701511,0.8648,3414.3,3413.8,2.34511798]
[1735661701703,0.8648,3414.3,3413.7,3.2078]
[1735661701704,0.29335,3413.8,3413.7,3.2078]
[1735661701907,3.2078,3413.9,3413.4,0.29338]
[1735661702215,3.2078,3413.9,3413.2,2.34511798]
[1735661702216,0.4261,3413.7,3413.6,0.29337]
[1735661702819,3.2078,3413.9,3413.8,0.29335]
[1735661703515,3.2078,3413.9,3413.8,2.63846798]
[1735661703913,0.4341,3414.1,3414.0,0.29333]
[1735661707721,0.4387,3414.3,3413.9,3.2078]
[1735661707922,3.2078,3414.5,3414.4,0.2933]
[1735661708426,1.62507,3414.8,3414.7,0.29327]
[1735661708613,1.3318,3414.8,3414.7,0.29327]
[1735661711016,0.29328,3414.6,3414.5,2.63839798]
[1735661711222,0.29328,3414.7,3414.6,0.29327]
[1735661711926,4.5396,3414.8,3414.3,3.2078]
[1735661712227,0.29329,3414.5,3414.4,0.29329]
[1735661712524,0.29328,3414.7,3414.6,0.29327]
[1735661713027,4.5396,3414.8,3414.5,2.34511798]
[1735661713028,4.83287,3414.8,3414.7,0.29327]
[1735661713528,0.29328,3414.7,3414.6,0.29328]
[1735661714019,4.5396,3414.8,3414.4,0.29329]